bitfinex/quotes_ETHUSD_20250813
["timestamp","ask_amount","ask_price","bid_price","bid_amount"]
[1755048387062,3.26249,4575.0,4574.9,8.703]
[1755048390170,0.83399,4575.0,4574.9,8.703]
[1755048390337,0.5374,4575.0,4574.9,8.703]
[1755048390974,2.9569,4575.0,4574.9,8.703]
[1755048391543,0.1096,4575.0,4574.9,8.703]
[1755048392005,0.5403,4575.0,4574.9,8.703]
[1755048392147,2.9598,4575.0,4574.9,8.703]
[1755048392351,3.25598,4575.0,4574.9,8.703]
[1755048393569,3.80598,4575.0,4574.9,8.702]
[1755048396907,0.95578,4575.0,4574.9,8.702]
[1755048397106,3.80598,4575.0,4574.9,8.702]
[1755048399281,0.95578,4575.0,4574.9,8.702]
[1755048399476,1.38648,4575.0,4574.9,8.702]
[1755048399681,3.5098,4575.0,4574.9,8.702]
[1755048400597,0.6596,4575.0,4574.9,8.702]
[1755048401419,0.1096,4575.0,4574.9,8.702]
[1755048401716,2.73584012,4574.9,4574.8,0.001]
[1755048402011,0.55,4574.5,4574.4,0.001]
[1755048402181,2.84563126,4574.5,4574.4,3.461]
[1755048402382,3.5098,4574.5,4574.4,3.461]
[1755048403384,5.69583126,4574.5,4574.4,3.461]
[1755048403580,2.73607904,4574.4,4574.2,5.24]
[1755048403808,1.1745879,4574.3,4574.2,5.24]
[1755048404007,1.1745879,4574.3,4574.2,8.7]
[1755048404600,0.55,4574.3,4574.2,8.7]
[1755048405624,0.1096,4574.3,4574.2,11.5635]
[1755048406148,0.1096,4574.3,4574.2,5.24]
[1755048406424,0.1096,4574.3,4574.2,8.699]
[1755048407580,0.5403,4574.3,4574.2,8.699]
[1755048407785,0.40558,4574.3,4574.2,8.699]
[1755048408692,0.1096,4574.3,4574.2,8.699]
[1755048409027,0.1096,4574.3,4574.2,11.5625]
[1755048410124,2.8522,4575.3,4574.2,11.5625]
[1755048410125,0.002,4575.3,4574.2,11.5625]
[1755048410344,0.1096,4574.3,4574.2,8.699]
[1755048410545,0.1096,4574.3,4574.2,21.18197]
[1755048410719,0.1096,4574.3,4574.2,22.204189]
[1755048410925,0.1096,4574.3,4574.2,8.698]
[1755048411230,0.1096,4574.3,4574.2,9.1645]
[1755048411407,0.1096,4574.3,4574.2,11.5615]
[1755048412146,0.1096,4574.3,4574.2,8.698]
[1755048414254,0.1096,4574.3,4574.2,5.24]
[1755048414467,0.1096,4574.3,4574.2,8.698]
[1755048415411,0.1096,4574.3,4574.2,9.1645]
[1755048415616,0.1096,4574.3,4574.2,11.5615]
[1755048415819,0.1096,4574.3,4574.2,8.698]
[1755048418476,0.1096,4574.3,4574.2,11.5615]
[1755048419388,0.1096,4574.3,4574.2,8.696]
[1755048419686,0.35873,4574.3,4574.2,8.696]
[1755048420741,0.55,4574.2,4573.8,0.001]
[1755048420958,3.3602,4574.2,4573.8,0.001]
[1755048421615,0.55,4574.2,4573.8,0.001]
[1755048421778,3.039285,4575.3,4573.8,0.001]
[1755048422079,0.1096,4574.1,4573.8,0.001]
[1755048422283,0.1096,4574.1,4574.0,3.456]
[1755048423251,0.1096,4574.1,4574.0,6.3009]
[1755048423588,0.1096,4574.1,4574.0,35.487886]
[1755048424586,0.1096,4574.1,4574.0,6.3009]
[1755048424749,0.1096,4574.1,4574.0,35.099414]
[1755048425573,0.002,4575.3,4574.1,30.0]
[1755048425772,0.1096,4574.5,4574.2,3.454]
[1755048425984,0.1096,4574.5,4574.3,30.0]
[1755048426184,0.1096,4574.5,4574.4,3.454]
[1755048426356,0.1096,4574.5,4574.4,36.2989]
[1755048426557,0.1096,4574.5,4574.4,9.324784]
[1755048426966,0.1096,4574.5,4574.4,13.81552]
[1755048427167,0.1096,4574.5,4574.4,36.2989]
[1755048427586,0.1096,4574.5,4574.4,36.53877466]
[1755048427767,0.002,4575.3,4574.4,36.2989]
[1755048428068,0.1096,4575.2,4574.5,32.8449]
[1755048428268,0.1096,4575.2,4574.6,33.454]
[1755048428599,0.1096,4575.2,4574.7,30.0]
[1755048428785,0.002,4575.3,4574.8,3.453]
[1755048428981,0.002,4575.3,4574.9,30.1096]
[1755048429186,0.002,4575.3,4575.0,33.453]
[1755048429384,0.002,4575.3,4575.1,30.0]
[1755048431499,0.002,4575.3,4575.2,36.4075]
[1755048432062,0.002,4575.3,4575.2,36.90973975]
[1755048432806,0.002,4575.3,4575.2,37.45973975]
[1755048432959,0.002,4575.3,4575.2,37.62361942]
[1755048433162,0.002,4575.3,4575.2,39.80931622]
[1755048433365,0.002,4575.3,4575.2,9.80931622]
[1755048433563,0.002,4575.3,4575.2,9.89664022]
[1755048433803,0.002,4575.3,4575.2,39.89664022]
[1755048434386,0.002,4575.3,4575.2,37.71094342]
[1755048434693,0.002,4575.3,4575.2,39.89664022]
[1755048437909,0.002,4575.3,4575.2,39.89364022]
[1755048438601,0.002,4575.3,4575.2,39.63127513]
[1755048439620,0.002,4575.3,4575.2,9.63127513]
[1755048440102,0.002,4575.3,4575.2,39.39140047]
[1755048443740,0.002,4575.3,4575.2,9.39140047]
[1755048444100,0.002,4575.3,4575.2,39.39140047]
[1755048445552,0.002,4575.3,4575.2,47.35140047]
[1755048446406,0.002,4575.3,4575.2,38.21120367]
[1755048446633,0.002,4575.3,4575.2,43.84290047]
[1755048446828,0.002,4575.3,4575.2,44.52644856]
[1755048447138,0.002,4575.3,4575.2,45.07644856]
[1755048448907,0.002,4575.3,4575.2,15.07644856]
[1755048449308,0.002,4575.3,4575.2,45.07644856]
[1755048449533,0.002,4575.3,4575.2,39.83944856]
[1755048451307,0.002,4575.3,4575.2,39.27780047]
[1755048451561,0.002,4575.3,4575.2,30.25120367]
[1755048451849,0.002,4575.3,4575.2,33.69620367]
[1755048452028,2.7074,4575.3,4575.2,33.69620367]
[1755048452618,2.7074,4575.3,4575.2,33.60887967]
[1755048453779,0.002,4575.3,4575.2,33.60887967]
[1755048454050,0.002,4575.3,4575.2,4.429596]
[1755048454563,0.002,4575.3,4575.2,34.429596]
[1755048454746,0.002,4575.3,4575.2,34.72052776]
[1755048455428,0.002,4575.3,4575.2,39.95752776]
[1755048455870,0.002,4575.3,4575.2,42.14322456]
[1755048456557,0.002,4575.3,4575.2,41.69117647]
[1755048457054,0.002,4575.3,4575.2,39.50547967]
[1755048457259,0.002,4575.3,4575.2,41.69117647]
[1755048457938,0.002,4575.3,4575.2,41.77850147]
[1755048458322,0.002,4575.3,4575.2,52.5702178]
[1755048458663,0.002,4575.3,4575.2,54.17214956]
[1755048460832,0.002,4575.3,4575.2,54.39044956]
[1755048461238,0.002,4575.3,4575.2,45.70844956]
[1755048461435,0.002,4575.3,4575.2,49.15144956]
[1755048461852,0.002,4575.3,4575.2,45.4175178]
[1755048462163,0.002,4575.3,4575.2,48.8595178]
[1755048462876,0.002,4575.3,4575.2,44.93750147]
[1755048463023,0.002,4575.3,4575.2,42.75180467]
[1755048463373,0.002,4575.3,4575.2,45.70580147]
[1755048463539,0.002,4575.3,4575.2,49.15044956]
[1755048463743,0.002,4575.3,4575.2,45.9765178]
[1755048464055,0.002,4575.3,4575.2,48.8595178]
[1755048464227,0.002,4575.3,4575.2,49.15044956]
[1755048464829,0.002,4575.3,4575.2,48.8595178]
[1755048465251,0.002,4575.3,4575.2,45.9765178]
[1755048465573,0.002,4575.3,4575.2,53.9355178]
[1755048465862,0.002,4575.3,4575.2,53.66480147]
[1755048466439,0.002,4575.3,4575.2,51.47910467]
[1755048466871,0.002,4575.3,4575.2,53.66480147]
[1755048467867,0.002,4575.3,4575.2,51.47910467]
[1755048468376,0.002,4575.3,4575.2,21.47910467]
[1755048468577,0.002,4575.3,4575.2,51.47910467]
[1755048468874,0.002,4575.3,4575.2,53.66480147]
[1755048469074,0.002,4575.3,4575.2,51.47910467]
[1755048469777,2.7074,4575.3,4575.2,38.31980467]
[1755048469992,2.7074,4575.3,4575.2,41.75980467]
[1755048470479,0.002,4575.3,4575.2,42.30980467]
[1755048470690,0.002,4575.3,4575.2,48.15844956]
[1755048470848,0.002,4575.3,4575.2,53.07344956]
[1755048471044,0.002,4575.3,4575.2,54.38444956]
[1755048471243,0.002,4575.3,4575.2,49.32284456]
[1755048471549,1e-08,4575.4,4575.3,5.00099211]
[1755048471750,1e-08,4575.4,4575.3,41.32399211]
[1755048472575,1e-08,4575.4,4575.3,11.32399211]
[1755048472745,1e-08,4575.4,4575.3,41.32399211]
[1755048473469,15.52170569,4576.4,4576.3,0.2183]
[1755048473785,15.52170569,4576.4,4576.3,46.59794809]
[1755048474082,15.52170569,4576.4,4576.3,48.89271951]
[1755048474246,10.30349169,4576.4,4576.3,48.89271951]
[1755048474446,10.30349169,4576.4,4576.3,42.57071951]
[1755048474655,10.30349169,4576.4,4576.3,39.8239]
[1755048475063,10.30349169,4576.4,4576.3,43.2629]
[1755048475581,13.00889169,4576.4,4576.3,38.2869]
[1755048475886,13.00889169,4576.4,4576.3,41.7249]
[1755048476473,13.00889169,4576.4,4576.3,41.5066]
[1755048476787,13.00889169,4576.4,4576.3,38.0686]
[1755048476986,13.00889169,4576.4,4576.3,41.5066]
[1755048479768,13.00889169,4576.4,4576.3,11.5066]
[1755048480555,10.30349169,4576.4,4576.3,41.5066]
[1755048480760,10.30349169,4576.4,4576.3,42.01583176]
[1755048481744,10.77839169,4576.4,4576.3,41.7249]
[1755048481903,10.30349169,4576.4,4576.3,41.7249]
[1755048482568,13.26799169,4576.4,4576.3,41.7249]
[1755048483103,10.30349169,4576.4,4576.3,41.7249]
[1755048483309,10.77839169,4576.4,4576.3,41.7249]
[1755048483863,10.30349169,4576.4,4576.3,41.7249]
[1755048484106,10.30349169,4576.4,4576.3,42.01583176]
[1755048484300,10.30349169,4576.4,4576.3,45.02171951]
[1755048484505,10.30349169,4576.4,4576.3,49.09121951]
[1755048484690,10.30349169,4576.4,4576.3,46.33271951]
[1755048484895,10.30349169,4576.4,4576.3,49.09121951]
[1755048485096,10.30349169,4576.4,4576.3,46.33271951]
[1755048485504,10.30349169,4576.4,4576.3,49.09121951]
[1755048485896,10.30349169,4576.4,4576.3,19.09121951]
[1755048486217,9.77978117,4576.4,4576.3,49.09121951]
[1755048486919,4.10729317,4576.4,4576.3,46.36821951]
[1755048487123,4.10729317,4576.4,4576.3,36.67554809]
[1755048487282,4.10729317,4576.4,4576.3,41.73507142]
[1755048489421,4.10729317,4576.4,4576.3,39.5499]
[1755048489722,7.07179317,4576.4,4576.3,39.5499]
[1755048489927,7.07179317,4576.4,4576.3,38.9999]
[1755048490222,7.07179317,4576.4,4576.3,38.7816]
[1755048490724,7.07179317,4576.4,4576.3,35.3456]
[1755048490927,7.07179317,4576.4,4576.3,38.7806]
[1755048493514,4.10729317,4576.4,4576.3,39.28983176]
[1755048494365,4.10729317,4576.4,4576.3,39.56054809]
[1755048494522,4.10729317,4576.4,4576.3,42.29571951]
[1755048494725,4.10729317,4576.4,4576.3,10.11054809]
[1755048494925,4.10729317,4576.4,4576.3,12.29571951]
[1755048495526,4.10729317,4576.4,4576.3,15.47651951]
[1755048495756,4.10729317,4576.4,4576.3,26.72421951]
[1755048495918,3.58353759,4576.4,4576.3,26.72421951]
[1755048496114,1e-08,4576.4,4576.3,26.89861451]
[1755048496556,1e-08,4576.4,4576.3,24.17661451]
[1755048497631,1e-08,4576.4,4576.3,18.94061451]
[1755048497952,1e-08,4576.7,4576.6,2.0793]
[1755048498162,1e-08,4576.7,4576.6,7.76804451]
[1755048498468,1e-08,4576.7,4576.6,11.10147127]
[1755048498957,1e-08,4576.9,4576.8,3.7142327]
[1755048499125,1e-08,4577.4,4577.3,3.71399403]
[1755048499464,1e-08,4577.4,4577.3,15.45124212]
[1755048499817,1e-08,4577.4,4577.3,18.20974212]
[1755048500018,1e-08,4577.4,4577.3,18.75974212]
[1755048500759,1.23,4578.9,4578.1,4.26361226]
[1755048500959,1.23,4578.9,4578.1,15.32861226]
[1755048501256,1.23,4578.9,4578.1,17.97841226]
[1755048501422,1.23,4578.9,4578.1,15.21991226]
[1755048502867,1.23,4578.9,4578.1,17.97841226]
[1755048503049,1.23,4578.9,4578.1,15.38033206]
[1755048503669,1.23,4578.9,4578.1,18.13883206]
[1755048503971,1.23,4578.9,4578.1,15.38033206]
[1755048504263,0.4749,4578.8,4578.1,15.38033206]
[1755048505301,2.4896,4578.7,4578.1,10.63733206]
[1755048505448,1.23,4578.9,4578.1,22.02433206]
[1755048505780,1.23,4578.9,4578.1,15.87133206]
[1755048505990,0.4749,4578.7,4578.1,19.30133206]
[1755048506386,0.4749,4578.7,4578.1,49.30133206]
[1755048506591,1.7069,4578.2,4578.1,43.6870198]
[1755048506777,4.1965,4578.2,4578.1,43.1370198]
[1755048506975,4.1965,4578.2,4578.1,38.9340198]
[1755048507757,1.232,4578.2,4578.1,38.9340198]
[1755048508151,1.232,4578.2,4578.1,41.66833206]
[1755048508379,1.232,4578.2,4578.1,42.22998015]
[1755048508986,1.232,4578.2,4578.1,36.72526382]
[1755048509357,1.232,4578.2,4578.1,37.15956382]
[1755048510976,1.232,4578.2,4578.1,36.72526382]
[1755048511177,1.232,4578.2,4578.1,36.94356382]
[1755048513065,1.232,4578.2,4578.1,36.65263206]
[1755048513362,1.232,4578.2,4578.1,37.96363206]
[1755048514379,1.232,4578.2,4578.1,7.96363206]
[1755048514579,1.232,4578.2,4578.1,37.96363206]
[1755048514786,1.232,4578.2,4578.1,36.94356382]
[1755048514981,1.232,4578.2,4578.1,36.65063206]
[1755048515297,3.9661,4578.2,4578.1,33.6980198]
[1755048515468,3.9661,4578.2,4578.1,38.9320198]
[1755048516290,3.9661,4578.2,4578.1,41.11633206]
[1755048516635,1.7016,4578.2,4578.1,38.9320198]
[1755048517089,3.9661,4578.2,4578.1,38.9320198]
[1755048519472,3.9661,4578.2,4578.1,38.9310198]
[1755048520976,3.9661,4578.2,4578.1,35.5040198]
[1755048521238,5.82571,4578.2,4578.1,25.1954458]
[1755048521584,5.82571,4578.2,4578.1,38.8214198]
[1755048522607,3.9661,4578.2,4578.1,38.8214198]
[1755048522919,1.232,4578.2,4578.1,39.49266789]
[1755048523418,1.232,4578.2,4578.1,39.22195156]
[1755048523806,1.232,4578.2,4578.1,38.9310198]
[1755048524380,1.232,4578.2,4578.1,44.95208015]
[1755048524594,1.232,4578.2,4578.1,45.17038015]
[1755048525032,1.232,4578.2,4578.1,46.48038015]
[1755048525395,1.13312748,4578.2,4578.1,47.54141617]
[1755048525599,13.0105702,4578.3,4578.2,35.28125148]
[1755048525912,13.0105702,4578.3,4578.2,41.99399957]
[1755048526497,13.0105702,4578.3,4578.2,42.64839357]
[1755048527527,13.0105702,4578.3,4578.2,41.62970664]
[1755048528225,13.0105702,4578.3,4578.2,42.64839357]
[1755048529657,13.0105702,4578.3,4578.2,37.03195855]
[1755048530152,13.0105702,4578.3,4578.2,41.06667724]
[1755048530358,13.0105702,4578.3,4578.2,41.33739357]
[1755048531324,12.7921702,4578.3,4578.2,41.33739357]
[1755048531525,12.7921702,4578.3,4578.2,40.31870664]
[1755048531926,12.7921702,4578.3,4578.2,37.30167488]
[1755048532166,12.7921702,4578.3,4578.2,37.03095855]
[1755048533055,12.7921702,4578.3,4578.2,38.04964548]
[1755048533256,12.7921702,4578.3,4578.2,37.03095855]
[1755048533863,12.7921702,4578.3,4578.2,38.77487724]
[1755048534034,12.7921702,4578.3,4578.2,41.06567724]
[1755048534361,12.26872079,4578.3,4578.2,42.37567724]
[1755048534592,12.26872079,4578.3,4578.2,42.64639357]
[1755048535003,1.23,4578.9,4578.4,3.16772762]
[1755048535300,1.23,4578.9,4578.8,2.40227833]
[1755048535454,1.23,4578.9,4578.8,41.60827833]
[1755048535785,1.23,4578.9,4578.8,46.04311009]
[1755048535971,1.23,4579.3,4579.2,2.95208756]
[1755048536172,1.23,4579.3,4579.2,44.00608756]
[1755048536372,1.23,4579.3,4579.2,47.40163565]
[1755048536949,1.23,4579.3,4579.2,48.05594365]
[1755048537376,1.232,4579.3,4579.2,48.05594365]
[1755048537570,1.232,4579.3,4579.2,49.36594365]
[1755048538489,0.002,4579.7,4579.5,4.2619445]
[1755048538684,0.002,4579.7,4579.5,38.08367626]
[1755048538889,0.002,4579.7,4579.5,40.80877626]
[1755048539085,0.002,4579.7,4579.5,10.80877626]
[1755048539582,0.002,4579.7,4579.5,41.07949259]
[1755048540087,0.002,4579.7,4579.5,11.07949259]
[1755048540285,0.002,4579.7,4579.5,8.35439259]
[1755048540489,0.002,4579.7,4579.5,38.35439259]
[1755048540921,0.002,4579.7,4579.5,34.3707445]
[1755048541209,5.3125,4579.6,4579.5,34.3707445]
[1755048541390,5.3125,4579.6,4579.5,37.7917445]
[1755048541710,2.462,4579.6,4579.5,37.7917445]
[1755048541909,2.462,4579.6,4579.5,38.08267626]
[1755048542329,2.462,4579.6,4579.5,41.15949259]
[1755048542835,2.462,4579.6,4579.5,38.35339259]
[1755048543333,2.462,4579.6,4579.5,38.08267626]
[1755048544086,2.462,4579.6,4579.5,37.7917445]
[1755048544528,2.9035,4579.6,4579.5,37.7917445]
[1755048544889,2.462,4579.6,4579.5,37.7917445]
[1755048545226,2.462,4579.6,4579.5,7.7917445]
[1755048545524,2.462,4579.6,4579.5,15.7437445]
[1755048545691,2.462,4579.6,4579.5,46.3980365]
[1755048545886,2.462,4579.6,4579.5,46.68896826]
[1755048546311,1.6695,4580.8,4580.7,0.2183]
[1755048546511,1.228,4580.8,4580.7,33.7471]
[1755048547105,4.0785,4580.8,4580.7,33.7471]
[1755048547740,4.0785,4580.8,4580.7,33.63535431]
[1755048548104,4.0785,4580.8,4580.7,33.7995117]
[1755048548536,4.0785,4580.8,4580.7,34.4537137]
[1755048549343,1.228,4580.8,4580.7,37.40508615]
[1755048549512,1.228,4580.8,4580.7,46.90573424]
[1755048549748,4.0785,4580.8,4580.7,42.59194546]
[1755048549980,4.0785,4580.8,4580.7,34.6720137]
[1755048550451,4.0785,4580.8,4580.7,4.6720137]
[1755048550987,4.0785,4580.8,4580.7,36.85508615]
[1755048551273,4.0785,4580.8,4580.7,34.6720137]
[1755048553438,4.0785,4580.8,4580.7,34.4537137]
[1755048554489,3.43455568,4580.8,4579.7,7.8483]
[1755048554780,3.43455568,4580.8,4577.2,1.02763646]
[1755048554781,0.1,4580.5,4576.8,0.001]
[1755048554982,2.299,4580.2,4576.9,30.0]
[1755048555188,2.849,4579.5,4577.4,0.65483]
[1755048555388,0.55,4579.3,4579.1,0.1088]
[1755048555586,0.55,4579.3,4579.2,3.418]
[1755048555782,2.409,4579.3,4578.7,5.232]
[1755048555968,0.1088,4578.8,4578.7,5.232]
[1755048556280,3.4093,4578.8,4578.7,5.232]
[1755048556442,4.18701403,4578.8,4578.7,5.232]
[1755048556969,4.18701403,4578.8,4578.7,8.65]
[1755048557786,0.55,4578.7,4578.0,5.232]
[1755048558075,2.7505,4578.6,4578.0,5.232]
[1755048558255,0.55,4578.1,4578.0,5.232]
[1755048558575,3.57392766,4578.1,4578.0,5.232]
[1755048558974,3.57392766,4578.1,4578.0,8.651]
[1755048559744,2.68242766,4578.1,4578.0,38.651]
[1755048559949,2.46859947,4579.4,4578.0,38.651]
[1755048559950,2.409,4578.6,4578.0,38.651]
[1755048560146,2.409,4578.6,4578.1,30.0]
[1755048560351,2.409,4578.6,4578.2,3.419]
[1755048560565,2.409,4578.6,4578.3,30.0]
[1755048560766,0.3415,4578.8,4578.4,3.419]
[1755048560987,2.409,4578.5,4578.4,7.96726]
[1755048561194,3.02555,4578.5,4578.4,10.397022]
[1755048561884,3.02555,4578.5,4578.4,3.419]
[1755048562249,3.02555,4578.5,4578.4,12.2427]
[1755048562485,3.02555,4578.5,4578.4,9.035126]
[1755048562783,2.68405,4578.5,4578.4,9.035126]
[1755048562984,2.68405,4578.5,4578.4,22.135997]
[1755048563171,2.68405,4578.5,4578.4,16.773099]
[1755048563353,3.02555,4578.5,4578.4,15.13657]
[1755048563550,3.02555,4578.5,4578.4,3.419]
[1755048563959,3.02555,4578.5,4578.4,5.4914]
[1755048564965,2.68405,4578.5,4578.4,21.165406]
[1755048565486,3.02555,4578.5,4578.4,12.197773]
[1755048566053,2.68405,4578.5,4578.4,3.42]
[1755048566255,3.02555,4578.5,4578.4,3.42]
[1755048567802,3.13515,4578.5,4578.4,3.42]
[1755048569518,2.79365,4578.5,4578.4,3.42]
[1755048569719,0.38465,4578.5,4578.4,18.735649]
[1755048570018,0.1096,4578.5,4578.4,18.735649]
[1755048570914,0.1096,4578.5,4578.4,33.42]
[1755048571285,0.1096,4578.5,4578.4,36.2414]
[1755048571682,0.1096,4578.5,4578.4,33.8925]
[1755048572081,0.1096,4578.5,4578.4,11.36316]
[1755048572281,0.1096,4578.5,4578.4,10.900094]
[1755048572821,0.1096,4578.5,4578.4,3.42]
[1755048573118,0.1096,4578.5,4578.4,6.843624]
[1755048573706,0.1096,4578.5,4578.4,3.42]
[1755048573909,0.1096,4578.5,4578.4,13.566851]
[1755048574423,0.1096,4578.5,4578.4,11.752613]
[1755048574778,0.1096,4578.5,4578.4,3.42]
[1755048574980,0.1096,4578.5,4578.4,19.428589]
[1755048575910,0.1096,4578.5,4578.4,33.8925]
[1755048576115,0.1096,4578.5,4578.4,36.2414]
[1755048576429,0.1088,4579.1,4578.4,36.351]
[1755048576630,0.1088,4579.1,4578.5,30.0]
[1755048576831,0.1088,4579.1,4578.6,3.42]
[1755048577001,0.1088,4579.1,4578.7,30.0]
[1755048577309,0.1088,4579.1,4578.8,3.42]
[1755048577631,0.1088,4579.1,4578.9,30.0]
[1755048577829,0.1088,4579.1,4579.0,3.42]
[1755048578031,0.1088,4579.1,4579.0,33.42]
[1755048578197,0.1088,4579.1,4579.0,33.8925]
[1755048578401,0.1088,4579.1,4579.0,34.0013]
[1755048579527,0.1088,4579.1,4579.0,34.16391429]
[1755048579835,0.1088,4579.4,4579.0,36.51281429]
[1755048580025,0.1088,4579.4,4579.1,30.0]
[1755048580228,0.1088,4579.4,4579.2,3.42]
[1755048580537,0.1088,4579.4,4579.3,30.0]
[1755048580922,0.1088,4579.4,4579.3,0.4725]
[1755048581228,0.1088,4579.4,4579.3,30.4725]
[1755048581740,0.002,4579.5,4579.3,30.4725]
[1755048581924,0.002,4579.5,4579.4,33.419]
[1755048582502,0.002,4579.5,4579.4,33.8915]
[1755048582728,0.002,4579.5,4579.4,36.2404]
[1755048583037,0.002,4579.5,4579.4,33.8915]
[1755048583342,0.002,4579.5,4579.4,34.0003]
[1755048583745,0.002,4579.5,4579.4,36.3492]
[1755048584105,0.002,4579.5,4579.4,6.3492]
[1755048584939,0.002,4579.5,4579.4,36.3492]
[1755048585138,0.002,4579.5,4579.4,36.458]
[1755048585429,0.002,4579.5,4579.4,33.6366]
[1755048586017,0.002,4579.5,4579.4,34.1091]
[1755048586406,0.002,4579.5,4579.4,36.458]
[1755048587254,0.002,4579.5,4579.4,33.6366]
[1755048587492,0.002,4579.5,4579.4,14.362587]
[1755048588154,0.002,4579.5,4579.4,7.901408]
[1755048588333,0.002,4579.5,4579.4,7.792608]
[1755048588536,0.25049,4579.5,4579.4,7.792608]
[1755048588780,2.62259,4579.5,4579.4,7.424308]
[1755048589067,2.62259,4579.5,4579.4,7.426301]
[1755048589277,2.62259,4579.5,4579.4,3.419]
[1755048589478,2.96409,4579.5,4579.4,3.419]
[1755048589860,2.96409,4579.5,4579.2,9.398408]
[1755048590067,2.96409,4579.5,4578.4,0.1096]
[1755048590068,2.3721,4579.4,4579.3,3.419]
[1755048590274,2.3721,4579.4,4579.3,6.601038]
[1755048590441,2.4809,4579.4,4579.3,6.601038]
[1755048591259,2.4809,4579.4,4579.3,16.811376]
[1755048591578,2.4809,4579.4,4579.3,15.503376]
[1755048591752,2.72939,4579.4,4579.3,7.574618]
[1755048592078,2.72939,4579.4,4579.3,3.419]
[1755048592287,3.07089,4579.4,4579.3,3.419]
[1755048592579,3.07089,4579.4,4579.3,3.418]
[1755048593094,2.72939,4579.4,4579.3,3.418]
[1755048593273,3.07089,4579.4,4579.3,3.418]
[1755048595461,0.35729,4579.4,4579.3,3.418]
[1755048595670,0.1088,4579.4,4579.3,20.908812]
[1755048595875,0.1088,4579.4,4579.3,19.98071]
[1755048596186,0.1088,4579.4,4579.3,20.45321]
[1755048596374,0.1088,4579.4,4579.3,22.80211]
[1755048596694,0.1088,4579.4,4579.3,10.29803]
[1755048597667,0.1088,4579.4,4579.3,14.438685]
[1755048598154,0.1088,4579.4,4579.3,14.911185]
[1755048598351,0.1088,4579.4,4579.3,9.181854]
[1755048598697,0.1088,4579.4,4579.3,5.627488]
[1755048598864,0.1088,4579.4,4579.2,5.3428]
[1755048599066,0.1088,4579.4,4579.3,6.017696]
[1755048599251,0.35729,4579.4,4579.3,7.703971]
[1755048599457,0.35729,4579.4,4579.3,12.897011]
[1755048599790,0.35729,4579.4,4579.3,11.589011]
[1755048600994,0.1088,4579.4,4579.3,11.589011]
[1755048601378,0.1088,4579.4,4579.3,27.688274]
[1755048601571,0.1088,4579.4,4579.3,28.143974]
[1755048601873,0.1088,4579.4,4579.3,30.519274]
[1755048602273,0.1088,4579.4,4579.3,36.249]
[1755048603093,0.002,4579.5,4579.3,36.249]
[1755048603292,0.002,4579.5,4579.4,30.4557]
[1755048603901,0.002,4579.5,4579.4,30.0]
[1755048604200,0.002,4579.5,4579.4,5.453737]
[1755048604368,2.63469,4579.5,4579.4,3.418]
[1755048604568,2.3851,4579.5,4579.4,3.418]
[1755048605299,0.55,4579.4,4579.2,5.234]
[1755048605499,2.73373987,4579.3,4579.2,5.234]
[1755048605821,6.24379043,4579.3,4579.2,8.651]
[1755048606646,6.24379043,4579.3,4579.2,5.234]
[1755048606935,6.24379043,4579.3,4579.2,8.651]
[1755048607143,0.55,4578.6,4578.5,5.235]
[1755048607348,3.2746,4578.6,4578.5,5.235]
[1755048607540,3.82046522,4578.6,4578.5,5.235]
[1755048607849,3.2746,4578.6,4578.5,5.235]
[1755048608206,3.2746,4578.6,4578.5,8.653]
[1755048608417,0.55,4579.1,4578.5,8.653]
[1755048608959,0.3435,4579.6,4578.5,8.653]
[1755048608960,2.3831,4579.4,4578.5,8.653]
[1755048609100,0.61436,4579.3,4578.5,8.653]
[1755048609299,0.55,4579.2,4578.5,8.653]
[1755048609500,0.55,4579.0,4578.5,8.653]
[1755048609714,0.55,4578.8,4578.5,8.653]
[1755048610049,0.55,4579.2,4578.5,8.653]
[1755048610249,0.55,4579.0,4578.5,8.653]
[1755048610554,2.7246,4578.9,4578.6,3.418]
[1755048610769,2.3831,4578.8,4578.7,3.418]
[1755048610978,0.55,4579.0,4578.7,3.418]
[1755048611463,0.55,4579.2,4578.7,3.418]
[1755048611628,2.3831,4578.9,4578.7,3.418]
[1755048611971,0.55,4579.2,4578.7,3.418]
[1755048611972,0.23831,4578.8,4578.7,3.418]
[1755048612139,2.3851,4579.5,4578.7,3.418]
[1755048614056,0.55,4579.4,4578.7,3.418]
[1755048615361,0.1088,4578.8,4578.7,3.418]
[1755048620743,0.1088,4578.8,4578.5,5.235]
[1755048620971,3.2746,4578.7,4578.6,3.417]
[1755048621214,2.18407373,4578.6,4578.5,5.235]
[1755048621326,5.11717373,4578.6,4578.5,5.235]
[1755048621528,2.9331,4578.6,4578.5,5.235]
[1755048622037,5.11717373,4578.6,4578.5,5.235]
[1755048622243,2.73416914,4578.4,4578.3,5.237]
[1755048622431,2.73416914,4578.4,4578.3,8.654]
[1755048622432,5.56836914,4578.4,4578.3,8.654]
[1755048626133,5.22686914,4578.4,4578.3,8.654]
[1755048626334,3.0427,4578.4,4578.3,8.654]
[1755048626837,5.22686914,4578.4,4578.3,8.654]
[1755048627032,6.079276,4578.4,4578.3,8.654]
[1755048627432,6.420776,4578.4,4578.3,8.654]
[1755048627965,5.03345541,4577.8,4577.3,0.001]